fUSD/lending_fUSD_20250904
["ID","MTS","AMOUNT","RATE_DAILY","PERIOD"]
[383581457,1757007041806,-400.0,0.0002477,2]
[383581458,1757007041816,-400.0,0.0002477,2]
[383581459,1757007041826,-151.0,0.0002477,7]
[383581460,1757007041835,-400.0,0.0002477,2]
[383581461,1757007041844,-400.0,0.00024771,2]
[383581462,1757007041854,-400.0,0.00024771,2]
[383581463,1757007041864,-400.0,0.00024771,2]
[383581464,1757007041873,-151.0,0.00024771,7]
[383581465,1757007041883,-151.0,0.00024771,7]
[383581466,1757007041892,-151.0,0.00024771,7]
[383581467,1757007041902,-151.0,0.00024771,7]
[383581468,1757007041911,-151.0,0.00024771,7]
[383581469,1757007041921,-151.0,0.00024771,7]
[383581470,1757007041930,-151.0,0.00024771,7]
[383581471,1757007041940,-185.180279,0.00024771,7]
[383581472,1757007041949,-151.0,0.00024771,7]
[383581473,1757007041959,-160.15,0.00024789,2]
[383581474,1757007041968,-586.18,0.00024789,2]
[383581475,1757007041978,-400.0,0.00024799,2]
[383581476,1757007041987,-353.27386014,0.00024799,2]
[383581477,1757007041997,-400.0,0.00024799,2]
[383581478,1757007042006,-400.0,0.00024799,2]
[383581479,1757007042015,-400.0,0.00024799,2]
[383581480,1757007042025,-400.0,0.00024799,2]
[383581481,1757007042035,-325.02,0.00024799,2]
[383581482,1757007042047,-400.0,0.00024799,2]
[383581483,1757007042058,-500.0,0.00024799,2]
[383581484,1757007042069,-272.31,0.00024799,2]
[383581485,1757007042079,-384.17,0.00024799,2]
[383581486,1757007042089,-168.42,0.00024799,2]
[383581487,1757007042098,-477.58,0.00024799,2]
[383581488,1757007042108,-400.0,0.00024799,2]
[383581489,1757007042117,-400.0,0.00024799,2]
[383581490,1757007042128,-400.0,0.00024799,2]
[383581491,1757007042138,-400.0,0.00024799,2]
[383581492,1757007042147,-227.57,0.00024799,2]
[383581493,1757007042157,-191.36,0.00024799,2]
[383581494,1757007042166,-521.23975912,0.00024799,2]
[383581495,1757007042175,-400.0,0.00024799,2]
[383581496,1757007042185,-400.0,0.00024799,2]
[383581497,1757007042194,-400.0,0.00024799,2]
[383581498,1757007042204,-400.0,0.00024799,2]
[383581499,1757007042214,-497.72,0.00024799,2]
[383581500,1757007042223,-400.0,0.00024799,2]
[383581501,1757007042232,-354.63,0.00024799,2]
[383581502,1757007042242,-327.31,0.00024799,2]
[383581503,1757007042251,-494.64,0.00024799,2]
[383581504,1757007042261,-268.39,0.00024799,2]
[383581505,1757007042271,-400.0,0.00024799,2]
[383581506,1757007042280,-400.0,0.00024799,2]
[383581507,1757007042290,-292.08,0.00024799,2]
[383581508,1757007042300,-446.53,0.00024799,2]
[383581509,1757007042311,-169.71,0.00024799,2]
[383581510,1757007042320,-272.65,0.00024799,2]
[383581511,1757007042330,-206.54,0.00024799,2]
[383581512,1757007042339,-400.0,0.00024799,2]
[383581513,1757007042350,-26.84733557,0.00024799,2]
[383581514,1757007042504,-373.15266443,0.00024799,2]
[383581515,1757007042514,-162.65,0.00024799,2]
[383581516,1757007042524,-162.6231656,0.00024799,2]
[383581517,1757007042534,-435.94,0.00024799,2]
[383581518,1757007042544,-400.0,0.00024799,2]
[383581519,1757007042553,-400.0,0.00024799,2]
[383581520,1757007042564,-451.87,0.00024799,2]
[383581521,1757007042574,-545.11,0.00024799,2]
[383581522,1757007042583,-505.8,0.00024799,2]
[383581523,1757007042593,-400.0,0.00024799,2]
[383581524,1757007042602,-400.0,0.00024799,2]
[383581525,1757007042611,-400.0,0.00024799,2]
[383581526,1757007042621,-400.0,0.00024799,2]
[383581527,1757007042630,-400.0,0.00024799,2]
[383581528,1757007042639,-400.0,0.00024799,2]
[383581529,1757007042650,-400.0,0.00024799,2]
[383581530,1757007042659,-400.0,0.00024799,2]
[383581531,1757007042669,-400.0,0.00024799,2]
[383581532,1757007042678,-400.0,0.00024799,2]
[383581533,1757007042688,-400.0,0.00024799,2]
[383581534,1757007042699,-400.0,0.00024799,2]
[383581535,1757007042708,-453.45,0.00024799,2]
[383581536,1757007042718,-400.0,0.00024799,2]
[383581537,1757007042727,-400.0,0.00024799,2]
[383581538,1757007042737,-400.0,0.00024799,2]
[383581539,1757007042747,-400.0,0.00024799,2]
[383581540,1757007042757,-463.79,0.00024799,2]
[383581541,1757007042767,-400.0,0.00024799,2]
[383581542,1757007042777,-525.09,0.00024799,2]
[383581544,1757007042787,-400.0,0.00024799,2]
[383581545,1757007042796,-400.0,0.00024799,2]
[383581546,1757007042805,-481.9,0.00024799,2]
[383581547,1757007042815,-400.0,0.00024799,2]
[383581548,1757007042824,-400.0,0.00024799,2]
[383581549,1757007042833,-400.0,0.00024799,2]
[383581550,1757007042842,-400.0,0.00024799,2]
[383581551,1757007042852,-400.0,0.00024799,2]
[383581552,1757007042862,-381.82752999,0.00024799,2]
[383581553,1757007042871,-400.0,0.00024799,2]
[383581554,1757007042880,-400.0,0.00024799,2]
[383581556,1757007042890,-400.0,0.00024799,2]
[383581558,1757007042899,-400.0,0.00024799,2]
[383581560,1757007042909,-400.0,0.00024799,2]
[383581562,1757007042918,-400.0,0.00024799,2]
[383581564,1757007042929,-408.69,0.00024799,2]
[383581566,1757007042938,-400.0,0.00024799,2]
[383581567,1757007042947,-400.0,0.00024799,2]
[383581568,1757007042957,-400.0,0.00024799,2]
[383581569,1757007042967,-400.0,0.00024799,2]
[383581570,1757007042976,-405.36670514,0.00024799,2]
[383581571,1757007042986,-473.32,0.00024799,2]
[383581572,1757007042996,-400.0,0.00024799,2]
[383581573,1757007043005,-400.0,0.00024799,2]
[383581575,1757007043015,-400.0,0.00024799,2]
[383581577,1757007043025,-400.0,0.00024799,2]
[383581578,1757007043034,-400.0,0.00024799,2]
[383581579,1757007043043,-488.04,0.00024799,2]
[383581580,1757007043056,-429.18,0.00024799,2]
[383581581,1757007043065,-500.0,0.00024799,2]
[383581582,1757007043075,-433.76,0.00024799,2]
[383581583,1757007043085,-407.92,0.00024799,2]
[383581584,1757007043094,-404.99,0.00024799,2]
[383581585,1757007043104,-400.0,0.00024799,2]
[383581586,1757007043113,-400.0,0.00024799,2]
[383581587,1757007043123,-400.0,0.00024799,2]
[383581588,1757007043132,-400.0,0.00024799,2]
[383581589,1757007043143,-400.0,0.00024799,2]
[383581590,1757007043152,-400.0,0.00024799,2]
[383581591,1757007043162,-400.0,0.00024799,2]
[383581592,1757007043171,-400.0,0.00024799,2]
[383581593,1757007043181,-400.0,0.00024799,2]
[383581594,1757007043190,-400.0,0.00024799,2]
[383581595,1757007043200,-400.0,0.00024799,2]
[383581596,1757007043211,-400.0,0.00024799,2]
[383581597,1757007043221,-400.0,0.00024799,2]
[383581598,1757007043230,-403.74569306,0.00024799,2]
[383581599,1757007043239,-400.0,0.00024799,2]
[383581600,1757007043249,-400.0,0.00024799,2]
[383581601,1757007043259,-400.0,0.00024799,2]
[383581602,1757007043269,-400.0,0.00024799,2]
[383581603,1757007043279,-152.13,0.00024799,2]
[383581604,1757007043289,-400.0,0.00024799,2]
[383581605,1757007043299,-400.0,0.00024799,2]
[383581606,1757007043308,-358.05,0.00024799,2]
[383581607,1757007043319,-400.0,0.00024799,2]
[383581608,1757007043329,-361.82,0.00024799,2]
[383581609,1757007043338,-400.0,0.00024799,2]
[383581610,1757007043348,-217.13,0.00024799,2]
[383581611,1757007043357,-400.0,0.00024799,2]
[383581612,1757007043365,-400.0,0.00024799,2]
[383581613,1757007043374,-400.0,0.00024799,2]
[383581614,1757007043383,-396.61,0.00024799,2]
[383581615,1757007043391,-400.0,0.00024799,2]
[383581616,1757007043399,-400.0,0.00024799,2]
[383581617,1757007043408,-400.0,0.00024799,2]
[383581618,1757007043417,-400.0,0.00024799,2]
[383581619,1757007043427,-400.0,0.00024799,2]
[383581620,1757007043437,-500.0,0.00024799,2]
[383581621,1757007043446,-400.0,0.00024799,2]
[383581622,1757007043456,-400.0,0.00024799,2]
[383581623,1757007043465,-400.0,0.00024799,2]
[383581624,1757007043475,-400.0,0.00024799,2]
[383581625,1757007043484,-393.68127111,0.00024799,2]
[383581626,1757007043494,-400.0,0.00024799,2]
[383581627,1757007043503,-400.0,0.00024799,2]
[383581628,1757007043513,-400.0,0.00024799,2]
[383581629,1757007043524,-400.0,0.00024799,2]
[383581631,1757007043534,-379.64,0.00024799,2]
[383581632,1757007043544,-151.0,0.00024799,7]
[383581634,1757007043554,-400.0,0.00024799,2]
[383581636,1757007043563,-394.75,0.00024799,2]
[383581638,1757007043576,-151.0,0.00024799,7]
[383581640,1757007043586,-400.0,0.00024799,2]
[383581643,1757007043596,-193.59,0.00024799,2]
[383581645,1757007043607,-151.0,0.00024799,7]
[383581647,1757007043616,-400.0,0.00024799,2]
[383581648,1757007043627,-400.0,0.00024799,2]
[383581650,1757007043636,-400.0,0.00024799,2]
[383581652,1757007043646,-400.0,0.00024799,2]
[383581654,1757007043655,-400.0,0.00024799,2]
[383581656,1757007043665,-400.0,0.00024799,2]
[383581658,1757007043675,-400.0,0.00024799,2]
[383581659,1757007043684,-400.0,0.00024799,2]
[383581660,1757007043694,-400.0,0.00024799,2]
[383581661,1757007043704,-400.0,0.00024799,2]
[383581662,1757007043713,-400.0,0.00024799,2]
[383581664,1757007043723,-400.0,0.00024799,2]
[383581665,1757007043733,-400.0,0.00024799,2]
[383581667,1757007043742,-400.0,0.00024799,2]
[383581668,1757007043751,-400.0,0.00024799,2]
[383581669,1757007043761,-400.0,0.00024799,2]
[383581670,1757007043771,-400.0,0.00024799,2]
[383581671,1757007043780,-400.0,0.00024799,2]
[383581672,1757007043789,-400.0,0.00024799,2]
[383581673,1757007043799,-400.0,0.00024799,2]
[383581674,1757007043808,-400.0,0.00024799,2]
[383581675,1757007043818,-400.0,0.00024799,2]
[383581676,1757007043828,-400.0,0.00024799,2]
[383581677,1757007043838,-400.0,0.00024799,2]
[383581678,1757007043847,-400.0,0.00024799,2]
[383581679,1757007043857,-400.0,0.00024799,2]
[383581680,1757007043867,-400.0,0.00024799,2]
[383581681,1757007043878,-400.0,0.00024799,2]
[383581682,1757007043887,-151.0,0.00024799,7]
[383581683,1757007043896,-400.0,0.00024799,2]
[383581684,1757007043906,-400.0,0.00024799,2]
[383581685,1757007043916,-151.0,0.00024799,7]
[383581686,1757007043925,-400.0,0.00024799,2]
[383581687,1757007043934,-400.0,0.00024799,2]
[383581688,1757007043944,-500.0,0.00024799,2]
[383581689,1757007043953,-400.0,0.00024799,2]
[383581690,1757007043964,-400.0,0.00024799,2]
[383581691,1757007043975,-400.0,0.00024799,2]
[383581692,1757007043985,-403.57855523,0.00024799,2]
[383581693,1757007043995,-400.0,0.00024799,2]
[383581694,1757007044008,-400.0,0.00024799,2]
[383581695,1757007044019,-400.0,0.00024799,2]
[383581696,1757007044028,-151.0,0.00024799,7]
[383581697,1757007044037,-400.0,0.00024799,2]
[383581698,1757007044047,-400.0,0.00024799,2]
[383581699,1757007044060,-400.0,0.00024799,2]
[383581700,1757007044069,-400.0,0.00024799,2]
[383581701,1757007044079,-400.0,0.00024799,2]
[383581702,1757007044088,-400.0,0.00024799,2]
[383581703,1757007044097,-400.0,0.00024799,2]
[383581704,1757007044107,-400.0,0.00024799,2]
[383581705,1757007044118,-400.0,0.00024799,2]
[383581706,1757007044129,-400.0,0.00024799,2]
[383581707,1757007044139,-545.09512791,0.00024799,2]
[383581708,1757007044149,-400.0,0.00024799,2]
[383581709,1757007044158,-400.0,0.00024799,2]
[383581710,1757007044167,-400.0,0.00024799,2]
[383581711,1757007044177,-400.0,0.00024799,2]
[383581712,1757007044189,-400.0,0.00024799,2]
[383581713,1757007044199,-400.0,0.00024799,2]
[383581714,1757007044210,-400.0,0.00024799,2]
[383581715,1757007044221,-400.0,0.00024799,2]
[383581716,1757007044267,-345.28061129,0.00024799,2]
[383581717,1757007044283,-54.71938871,0.00024799,2]
[383581718,1757007044293,-400.0,0.00024799,2]
[383581719,1757007044303,-400.0,0.00024799,2]
[383581720,1757007044313,-400.0,0.00024799,2]
[383581721,1757007044323,-400.0,0.00024799,2]
[383581722,1757007044333,-400.0,0.00024799,2]
[383581723,1757007044342,-400.0,0.00024799,2]
[383581724,1757007044351,-400.0,0.00024799,2]
[383581725,1757007044361,-400.0,0.00024799,2]
[383581726,1757007044370,-400.0,0.00024799,2]
[383581727,1757007044380,-400.0,0.00024799,2]
[383581728,1757007044389,-400.0,0.00024799,2]
[383581729,1757007044398,-400.0,0.00024799,2]
[383581730,1757007044408,-400.0,0.00024799,2]
[383581731,1757007044417,-400.0,0.00024799,2]
[383581732,1757007044427,-400.0,0.00024799,2]
[383581733,1757007044436,-400.0,0.00024799,2]
[383581734,1757007044446,-400.0,0.00024799,2]
[383581735,1757007044455,-400.0,0.00024799,2]
[383581736,1757007044465,-400.0,0.00024799,2]
[383581737,1757007044475,-400.0,0.00024799,2]
[383581738,1757007044485,-400.0,0.00024799,2]
[383581739,1757007044494,-400.0,0.00024799,2]
[383581740,1757007044503,-301.62347868,0.00024799,2]
[383581741,1757007044513,-500.0,0.00024799,2]
[383581742,1757007044523,-400.0,0.00024799,2]
[383581743,1757007044533,-400.0,0.00024799,2]
[383581744,1757007044542,-287.02,0.00024799,2]
[383581745,1757007044551,-400.0,0.00024799,2]
[383581746,1757007044562,-400.0,0.00024799,2]
[383581747,1757007044572,-400.0,0.00024799,2]
[383581748,1757007044581,-388.41097624,0.00024799,2]
[383581749,1757007044609,-11.58902376,0.00024799,2]
[383581750,1757007044618,-400.0,0.00024799,2]
[383581751,1757007044627,-400.0,0.00024799,2]
[383581752,1757007044636,-400.0,0.00024799,2]
[383581753,1757007044646,-400.0,0.00024799,2]
[383581754,1757007044655,-290.31603104,0.00024799,2]
[383581755,1757007044667,-109.68396896,0.00024799,2]
[383581756,1757007044677,-437.48239902,0.00024799,2]
[383581757,1757007044686,-400.0,0.00024799,2]
[383581758,1757007044695,-323.52,0.00024799,2]
[383581759,1757007044704,-400.0,0.00024799,2]
[383581760,1757007044714,-529.96804721,0.00024799,2]
[383581761,1757007044723,-145.85972286,0.00024799,2]
[383581762,1757007044735,-254.14027714,0.00024799,2]
[383581763,1757007044744,-236.43120303,0.00024799,2]
[383581765,1757007046302,-724.0,0.00023859,2]
[383581766,1757007046315,-400.0,0.00024769,2]
[383581767,1757007046325,-198.54,0.0002477,2]
[383581768,1757007046335,-163.56879697,0.00024799,2]
[383581769,1757007046346,-400.0,0.00024799,2]
[383581770,1757007046355,-400.0,0.00024799,2]
[383581771,1757007046365,-400.0,0.00024799,2]
[383581772,1757007046374,-400.0,0.00024799,2]
[383581773,1757007046384,-400.0,0.00024799,2]
[383581774,1757007046395,-400.0,0.00024799,2]
[383581775,1757007046405,-400.0,0.00024799,2]
[383581776,1757007046416,-400.0,0.00024799,2]
[383581777,1757007046426,-400.0,0.00024799,2]
[383581778,1757007046435,-400.0,0.00024799,2]
[383581779,1757007046445,-400.0,0.00024799,2]
[383581780,1757007046454,-442.7,0.00024799,2]
[383581781,1757007046463,-314.27835563,0.00024799,2]
[383581782,1757007046520,-185.72164437,0.00024799,2]
[383581783,1757007046529,-400.0,0.00024799,2]
[383581784,1757007046539,-400.0,0.00024799,2]
[383581785,1757007046549,-79.11026643,0.00024799,2]
[383581786,1757007046560,-424.73973357,0.00024799,2]
[383581787,1757007046569,-400.0,0.00024799,2]
[383581788,1757007046579,-400.0,0.00024799,2]
[383581789,1757007046588,-400.0,0.00024799,2]
[383581790,1757007046597,-400.0,0.00024799,2]
[383581791,1757007046606,-400.0,0.00024799,2]
[383581792,1757007046615,-400.0,0.00024799,2]
[383581793,1757007046625,-400.0,0.00024799,2]
[383581794,1757007046635,-400.0,0.00024799,2]
[383581795,1757007046644,-400.0,0.00024799,2]
[383581796,1757007046654,-400.0,0.00024799,2]
[383581797,1757007046663,-500.0,0.00024799,2]
[383581798,1757007046672,-400.0,0.00024799,2]
[383581799,1757007046681,-400.0,0.00024799,2]
[383581800,1757007046690,-51.00630833,0.00024799,2]
[383581801,1757007046702,-348.99369167,0.00024799,2]
[383581802,1757007046712,-400.0,0.00024799,2]
[383581803,1757007046721,-400.0,0.00024799,2]
[383581804,1757007046731,-400.0,0.00024799,2]
[383581805,1757007046740,-400.0,0.00024799,2]
[383581806,1757007046750,-400.0,0.00024799,2]
[383581807,1757007046760,-400.0,0.00024799,2]
[383581808,1757007046771,-400.0,0.00024799,2]
[383581809,1757007046779,-400.0,0.00024799,2]
[383581810,1757007046789,-400.0,0.00024799,2]
[383581811,1757007046798,-400.0,0.00024799,2]
[383581812,1757007046807,-400.0,0.00024799,2]
[383581813,1757007046818,-400.0,0.00024799,2]
[383581814,1757007046828,-400.0,0.00024799,2]
[383581815,1757007046838,-441.64159491,0.00024799,2]
[383581816,1757007046850,-57.36840509,0.00024799,2]
[383581817,1757007046861,-333.06740894,0.00024799,2]
[383581818,1757007046872,-66.93259106,0.00024799,2]
[383581819,1757007046882,-203.95872835,0.00024799,2]
[383581837,1757007274742,1145.46,0.00030137,120]
[383581842,1757007313133,250.0,0.00015,2]
[383581843,1757007314251,300.0,0.00017,2]
[383581845,1757007380425,1000.0,0.0002002,2]
[383581846,1757007404524,2000.0,0.0003013,120]
[383581847,1757007405551,2000.0,0.0003013,120]
[383581848,1757007406709,2000.0,0.0003013,120]
[383581849,1757007407640,2000.0,0.0003013,120]
[383581850,1757007408510,2000.0,0.0003013,120]
[383581851,1757007409330,2000.0,0.0003013,120]
[383581852,1757007410772,2000.0,0.0003013,120]
[383581853,1757007411639,2000.0,0.0003013,120]
[383581854,1757007416704,2000.0,0.0003013,120]
[383581855,1757007425477,926.0,0.0003013,120]
[383581858,1757007547990,151.66,0.00011842,2]
[383581859,1757007548186,151.66,0.00014803,2]
[383581860,1757007548423,151.66,0.00017763,2]
[383581861,1757007625983,500.0,0.00030137,120]
[383581862,1757007646184,712.0,0.00030137,120]
[383581864,1757007761137,500.0,0.0002002,2]
[383581866,1757008212086,169.73,0.00013699,2]
[383581869,1757008232402,-169.73,0.00020187,2]
[383581870,1757008232412,-151.66,0.00020724,2]
[383581871,1757008232423,-234.2,0.00022,2]
[383581872,1757008232433,-178.4768459,0.00022092,2]
[383581873,1757008232443,-423.80841174,0.00022092,2]
[383581874,1757008232454,-153.87111908,0.00022092,2]
[383581875,1757008232465,-405.7,0.000221,2]
[383581876,1757008232474,-196.88,0.000221,2]
[383581877,1757008232483,-3010.21128815,0.00023094,2]
[383581878,1757008232493,-160.0,0.000232,7]
[383581879,1757008232502,-1200.0,0.00023266,2]
[383581880,1757008232512,-153.5,0.00023325,2]
[383581881,1757008232522,-300.0,0.00023354,2]
[383581882,1757008232531,-239.84119403,0.00023355,2]
[383581884,1757008232541,-202.37376011,0.00023355,2]
[383581886,1757008232551,-37014.37936054,0.00023359,2]
[383581888,1757008232561,-2035.0,0.00023369,2]
[383581890,1757008232571,-924.0,0.00023369,2]
[383581892,1757008232580,-1258.0,0.00023369,2]
[383581894,1757008232591,-3382.0,0.00023369,2]
[383581896,1757008232604,-1300.0,0.00023369,2]
[383581898,1757008232613,-1577.0,0.00023369,2]
[383581900,1757008232624,-567.0,0.00023369,2]
[383581903,1757008232634,-600.0,0.00023369,2]
[383581906,1757008232647,-1175.0,0.00023369,2]
[383581909,1757008232658,-896.0,0.00023369,2]
[383581912,1757008232667,-811.0,0.00023369,2]
[383581915,1757008232678,-4163.0,0.00023369,2]
[383581918,1757008232688,-6163.0,0.00023369,2]
[383581921,1757008232698,-724.0,0.00023369,2]
[383581924,1757008232708,-14358.93894147,0.00023369,2]
[383581968,1757008232914,-272.72790005,0.00023369,2]
[383581971,1757008232926,-395.61553434,0.00023369,2]
[383582027,1757008240290,-1388.92979436,0.00023369,2]
[383582028,1757008240301,-818.39177471,0.00023369,2]
[383582029,1757008240343,-3914.39605507,0.00023369,2]
[383582030,1757008240353,-160.0,0.0002352,2]
[383582031,1757008240363,-212.59699798,0.0002352,2]
[383582032,1757008240373,-514.64478986,0.0002352,2]
[383582033,1757008240382,-160.0,0.0002352,2]
[383582034,1757008240392,-151.66,0.00023685,2]
[383582035,1757008240403,-492.0,0.000237,2]
[383582036,1757008240413,-164.6,0.00023722,2]
[383582037,1757008240422,-1000.0,0.00023726,2]
[383582038,1757008240431,-405.7,0.00024,2]
[383582039,1757008240441,-196.88,0.00024,2]
[383582040,1757008240450,-729.33,0.00024559,7]
[383582041,1757008240459,-1001.0,0.000246,2]
[383582042,1757008240469,-1000.0,0.000246,2]
[383582043,1757008240478,-1002.0,0.000246,2]
[383582044,1757008240487,-1000.0,0.000246,2]
[383582045,1757008240497,-1000.0,0.000246,2]
[383582046,1757008240506,-1000.0,0.00024616,2]
[383582047,1757008240516,-390.04,0.00024658,2]
[383582048,1757008240526,-7191.24362784,0.00024699,2]
[383582049,1757008240535,-248.71531821,0.00024724,2]
[383582050,1757008240545,-400.0,0.00024769,2]
[383582051,1757008240554,-277.02,0.00024769,2]
[383582052,1757008240564,-495.05,0.00024769,2]
[383582053,1757008240574,-400.0,0.00024769,2]
[383582054,1757008240583,-400.0,0.00024769,2]
[383582055,1757008240594,-400.0,0.00024769,2]
[383582056,1757008240606,-400.0,0.00024769,2]
[383582057,1757008240615,-261.28,0.00024769,2]
[383582058,1757008240625,-400.0,0.00024769,2]
[383582059,1757008240634,-362.13,0.00024769,2]
[383582060,1757008240645,-400.0,0.00024769,2]
[383582061,1757008240654,-481.47,0.00024769,2]
[383582062,1757008240664,-210.1,0.00024769,2]
[383582063,1757008240675,-400.0,0.00024769,2]
[383582064,1757008240684,-400.0,0.00024769,2]
[383582065,1757008240693,-400.0,0.00024769,2]
[383582066,1757008240702,-400.0,0.00024769,2]
[383582067,1757008240712,-391.68,0.00024769,2]
[383582068,1757008240722,-297.79,0.00024769,2]
[383582069,1757008240731,-151.22,0.00024769,2]
[383582070,1757008240741,-400.0,0.00024769,2]
[383582071,1757008240750,-290.22,0.00024769,2]
[383582072,1757008240760,-326.75,0.00024769,2]
[383582073,1757008240769,-400.0,0.00024769,2]
[383582074,1757008240779,-256.11,0.00024769,2]
[383582075,1757008240788,-400.0,0.00024769,2]
[383582076,1757008240797,-155.11,0.00024769,2]
[383582077,1757008240806,-400.0,0.00024769,2]
[383582078,1757008240816,-400.0,0.00024769,2]
[383582080,1757008240827,-400.0,0.00024769,2]
[383582082,1757008240837,-282.05,0.00024769,2]
[383582085,1757008240846,-522.52,0.00024769,2]
[383582088,1757008240856,-400.0,0.00024769,2]
[383582090,1757008240865,-225.11,0.00024769,2]
[383582092,1757008240874,-400.0,0.00024769,2]
[383582094,1757008240883,-461.53,0.00024769,2]
[383582096,1757008240893,-158.85,0.00024769,2]
[383582098,1757008240902,-371.98905874,0.00024769,2]
[383582100,1757008240911,-166.8,0.00024769,2]
[383582102,1757008240921,-507.00106011,0.00024769,2]
[383582104,1757008240930,-400.0,0.00024769,2]
[383582106,1757008240939,-400.0,0.00024769,2]
[383582108,1757008240948,-400.0,0.00024769,2]
[383582110,1757008240957,-400.0,0.00024769,2]
[383582112,1757008240966,-400.0,0.00024769,2]
[383582114,1757008240976,-295.69627322,0.00024769,2]
[383582116,1757008240985,-400.0,0.00024769,2]
[383582118,1757008240994,-400.0,0.00024769,2]
[383582120,1757008241003,-235.36,0.00024769,2]
[383582122,1757008241012,-296.94,0.00024769,2]
[383582124,1757008241021,-402.06516033,0.00024769,2]
[383582126,1757008241030,-400.0,0.00024769,2]
[383582128,1757008241039,-400.0,0.00024769,2]
[383582130,1757008241048,-179.24815241,0.00024769,2]
[383582132,1757008241057,-400.0,0.00024769,2]
[383582134,1757008241069,-400.0,0.00024769,2]
[383582136,1757008241078,-205.6536,0.00024769,2]
[383582138,1757008241087,-500.0,0.00024769,2]
[383582140,1757008241097,-500.0,0.00024769,2]
[383582142,1757008241106,-400.0,0.00024769,2]
[383582144,1757008241115,-404.13,0.00024769,2]
[383582146,1757008241124,-299.73,0.00024769,2]
[383582148,1757008241133,-400.0,0.00024769,2]
[383582150,1757008241143,-164.49,0.00024769,2]
[383582152,1757008241152,-441.87,0.00024769,2]
[383582154,1757008241161,-400.0,0.00024769,2]
[383582156,1757008241170,-400.0,0.00024769,2]
[383582158,1757008241179,-196.04127165,0.00024769,2]
[383582160,1757008241189,-400.0,0.00024769,2]
[383582162,1757008241198,-400.0,0.00024769,2]
[383582164,1757008241207,-400.0,0.00024769,2]
[383582166,1757008241216,-400.0,0.00024769,2]
[383582168,1757008241226,-400.0,0.00024769,2]
[383582170,1757008241235,-150.0,0.00024769,2]
[383582172,1757008241244,-150.0,0.00024769,2]
[383582174,1757008241253,-400.0,0.00024769,2]
[383582176,1757008241262,-150.0,0.00024769,2]
[383582178,1757008241272,-8459.5756699,0.00024799,2]
[383582180,1757008241282,-549.06455,0.00024799,2]
[383582182,1757008241291,-1000.0,0.000248,2]
[383582184,1757008241300,-1000.0,0.000248,3]
[383582186,1757008241309,-1028.0,0.000248,3]
[383582188,1757008241319,-1000.0,0.000248,2]
[383582190,1757008241329,-1000.0,0.000248,2]
[383582192,1757008241338,-1000.0,0.000248,3]
[383582194,1757008241347,-400.0,0.000248,9]